bitfinex/quotes_SOLUSD_20250912
["timestamp","ask_amount","ask_price","bid_price","bid_amount"]
[1757669114607,2.91267539,238.04,238.01,0.13]
[1757669114805,0.76,238.06,238.01,0.84]
[1757669115106,2.21267539,238.05,238.01,0.84]
[1757669115403,2.21267539,238.05,238.01,0.13]
[1757669115404,7.11354079,238.05,238.01,0.13]
[1757669115604,0.7,238.04,238.01,0.13]
[1757669115814,2.91267539,238.04,238.01,0.13]
[1757669116588,2.21267539,238.04,238.01,0.13]
[1757669116819,0.7,238.03,238.01,0.13]
[1757669117116,2.91267539,238.04,238.01,0.13]
[1757669117302,7.11378564,238.04,238.01,0.13]
[1757669118310,6.41378564,238.04,238.01,0.13]
[1757669118497,0.7,238.03,238.01,0.13]
[1757669118690,0.7,238.02,238.01,0.13]
[1757669119105,2.21267539,238.03,238.01,0.13]
[1757669119286,2.91267539,238.03,238.01,0.13]
[1757669119492,0.7,238.02,238.01,0.13]
[1757669119900,0.7,238.02,237.94,0.03]
[1757669120510,4.90134128,238.02,237.94,0.03]
[1757669120715,7.11401667,238.02,237.94,0.03]
[1757669121890,7.11401667,238.02,237.96,26.0]
[1757669122427,6.41401667,238.02,237.95,22.84988412]
[1757669122625,2.21267539,237.99,237.94,0.03]
[1757669123120,0.7,237.98,237.94,0.03]
[1757669124412,0.7,237.97,237.94,0.03]
[1757669124702,2.91267539,237.97,237.94,0.03]
[1757669124899,2.21267539,237.96,237.94,0.03]
[1757669125410,0.71,237.95,237.94,0.03]
[1757669126002,0.71,237.95,237.91,26.0]
[1757669127416,0.71,237.95,237.91,30.2031276]
[1757669128004,2.21267539,237.96,237.91,30.2031276]
[1757669128207,2.21267539,237.97,237.92,0.56]
[1757669128524,2.92267539,237.97,237.92,0.56]
[1757669128720,0.71,237.97,237.92,0.56]
[1757669128904,0.71,237.97,237.91,4.2031276]
[1757669129108,2.92267539,237.97,237.91,4.2031276]
[1757669130128,2.21267539,237.97,237.91,4.7631276]
[1757669130601,2.92267539,237.97,237.91,4.7631276]
[1757669130797,2.21267539,237.96,237.91,4.7631276]
[1757669131013,2.92267539,237.96,237.91,4.7631276]
[1757669131528,0.71,237.96,237.91,4.7631276]
[1757669131917,0.71,237.96,237.91,0.56]
[1757669132504,0.71,237.96,237.9,7.94797365]
[1757669132836,0.71,237.96,237.91,0.03]
[1757669133010,0.71,237.98,237.91,0.03]
[1757669133628,0.71,237.98,237.91,14.74130296]
[1757669134236,6.41436103,238.0,237.91,10.53817536]
[1757669134401,2.92267539,237.99,237.91,10.53817536]
[1757669134606,0.71,237.98,237.91,10.53817536]
[1757669134810,0.71,237.97,237.91,10.53817536]
[1757669137931,0.71,237.97,237.89,58.53]
[1757669139512,0.71,237.97,237.91,10.50817536]
[1757669140233,4.20146406,238.02,237.91,10.50817536]
[1757669140435,0.71,237.99,237.91,10.50817536]
[1757669140637,0.71,238.02,237.92,13.59559401]
[1757669140819,0.71,238.02,237.95,26.0]
[1757669141020,0.71,238.04,237.95,58.5]
[1757669141524,0.71,238.03,237.95,58.5]
[1757669141731,0.71,238.02,237.96,4.20238695]
[1757669142646,0.71,238.02,237.95,58.5]
[1757669142824,3.45951962,237.99,237.88,0.03]
[1757669143034,3.45951962,237.98,237.88,13.62559401]
[1757669143240,0.71,237.97,237.91,26.0]
[1757669143429,0.71,237.97,237.88,13.62559401]
[1757669143630,0.71,237.97,237.89,14.7425652]
[1757669143939,0.71,237.96,237.92,26.0]
[1757669144127,0.71,237.95,237.92,26.0]
[1757669145425,0.71,237.95,237.91,30.20325286]
[1757669145639,0.71,237.95,237.91,26.0]
[1757669146115,3.45951962,237.96,237.91,26.0]
[1757669146116,0.71,237.94,237.91,26.0]
[1757669146512,7.6619101,237.96,237.91,26.0]
[1757669146834,7.6619101,237.96,237.89,4.23358887]
[1757669146835,0.71,237.93,237.89,4.23358887]
[1757669147145,3.45951962,237.94,237.89,0.03]
[1757669147146,0.71,237.92,237.89,0.03]
[1757669147322,0.71,237.93,237.89,0.03]
[1757669148735,0.71,237.92,237.9,26.0]
[1757669149636,0.71,237.92,237.91,4.20327014]
[1757669150143,3.45951962,237.94,237.91,4.20327014]
[1757669150346,0.71,237.93,237.91,4.20327014]
[1757669155255,0.06,237.95,237.91,4.20327014]
[1757669155554,0.69,237.93,237.91,4.20327014]
[1757669157032,0.69,237.92,237.91,4.20327014]
[1757669157943,0.69,237.92,237.9,26.03]
[1757669158140,0.69,237.91,237.9,0.03]
[1757669161068,0.69,237.93,237.9,0.03]
[1757669161366,3.45951962,237.94,237.9,0.03]
[1757669161367,0.69,237.92,237.9,0.03]
[1757669162462,0.69,237.91,237.9,0.03]
[1757669166670,0.75,237.95,237.9,0.03]
[1757669166838,0.69,237.94,237.9,0.03]
[1757669167334,0.69,237.93,237.9,0.03]
[1757669167865,0.75,237.95,237.9,4.23344682]
[1757669168049,0.69,237.94,237.9,4.23344682]
[1757669168359,0.69,237.93,237.9,5.94486089]
[1757669170558,0.69,237.93,237.9,16.45347795]
[1757669175267,0.69,237.93,237.9,14.74206388]
[1757669176061,0.69,237.92,237.9,4.23344682]
[1757669176264,0.69,237.91,237.9,0.03]
[1757669176672,0.69,237.91,237.9,4.23344682]
[1757669176973,0.69,237.91,237.9,0.03]
[1757669177265,0.69,237.92,237.9,0.03]
[1757669177465,3.51951962,237.94,237.9,0.03]
[1757669177657,0.69,237.91,237.9,0.03]
[1757669182273,4.89327014,237.91,237.9,0.03]
[1757669187270,8.35278976,237.91,237.9,0.03]
[1757669195967,4.89327014,237.91,237.9,0.03]
[1757669196162,8.35278976,237.91,237.9,0.03]
[1757669196563,4.89327014,237.91,237.9,0.03]
[1757669199670,4.2630226,237.93,237.9,0.03]
[1757669199871,0.06,237.93,237.9,0.03]
[1757669200784,0.06,237.93,237.9,1.71134339]
[1757669201568,0.68,237.92,237.9,1.71134339]
[1757669201775,0.68,237.92,237.9,0.03]
[1757669202190,3.45951962,237.91,237.9,0.03]
[1757669202488,2.21598323,237.91,237.9,0.03]
[1757669202689,2.89598323,237.91,237.9,0.03]
[1757669203389,7.09925337,237.91,237.9,0.03]
[1757669205474,0.68,237.91,237.9,0.03]
[1757669205799,32.48,237.91,237.9,0.03]
[1757669205985,0.06,237.92,237.9,0.03]
[1757669207377,0.74,237.92,237.9,0.03]
[1757669209692,0.68,237.91,237.9,0.03]
[1757669210200,0.06,237.92,237.9,0.03]
[1757669210403,0.74,237.92,237.9,0.03]
[1757669211703,0.06,237.92,237.9,0.03]
[1757669214306,0.06,237.92,237.9,4.23344682]
[1757669221306,0.06,237.92,237.91,39.59559401]
[1757669221709,0.06,237.92,237.91,45.47978362]
[1757669222796,0.06,237.92,237.91,45.90011063]
[1757669223113,0.06,237.92,237.91,45.47978362]
[1757669225898,0.06,237.96,237.95,39.59559401]
[1757669226107,0.7,238.04,237.96,13.59559401]
[1757669226489,0.7,238.04,237.96,15.27601916]
[1757669227900,0.76,238.06,238.01,26.0]
[1757669228108,0.7,238.04,238.01,26.0]
[1757669228306,0.7,238.03,238.02,26.0]
[1757669229400,0.7,238.03,238.02,30.20132761]
[1757669233418,0.76,238.05,238.02,40.70464665]
[1757669233625,0.7,238.04,238.02,40.70464665]
[1757669233815,0.7,238.04,238.02,42.3850718]
[1757669234215,0.06,238.05,238.02,27.68042515]
[1757669234397,0.7,238.03,238.02,26.0]
[1757669234603,0.7,238.03,238.01,26.0]
[1757669234802,0.7,238.03,238.02,26.0]
[1757669235519,0.7,238.03,238.01,27.68042515]
[1757669235719,0.06,238.05,238.01,1.68042515]
[1757669235928,0.7,238.02,238.01,1.68042515]
[1757669236107,0.7,238.02,238.0,26.0]
[1757669236426,0.7,238.01,238.0,27.68049574]
[1757669236717,0.7,238.01,237.91,13.59559401]
[1757669236894,0.7,238.0,237.93,13.59559401]
[1757669237096,0.7,237.99,237.95,4.2608425]
[1757669237314,0.7,237.98,237.96,26.0]
[1757669237827,0.7,237.97,237.96,26.0]
[1757669239025,0.7,237.97,237.93,13.59559401]
[1757669239026,0.7,237.97,237.93,32.44]
[1757669239223,0.7,237.96,237.93,32.44]
[1757669239528,0.7,237.95,237.91,32.44]
[1757669239703,0.7,237.94,237.93,26.0]
[1757669240610,0.7,237.94,237.9,0.03]
[1757669240803,4.20291682,237.93,237.9,0.03]
[1757669241224,0.7,237.92,237.9,0.03]
[1757669242826,7.11911442,237.92,237.9,0.03]
[1757669243017,0.7,237.92,237.9,0.03]
[1757669243428,0.7,237.91,237.9,0.03]
[1757669243633,0.7,237.92,237.9,0.03]
[1757669243812,0.7,237.91,237.9,0.03]
[1757669251034,0.66,237.93,237.9,0.03]
[1757669251439,0.66,237.92,237.9,0.03]
[1757669252322,4.86313456,237.92,237.9,0.03]
[1757669252526,0.66,237.92,237.9,0.03]
[1757669255544,4.86319866,237.92,237.9,0.03]
[1757669255743,2.21598323,237.91,237.9,0.03]
[1757669256246,4.86327014,237.91,237.9,0.03]
[1757669258935,0.66,237.91,237.9,0.03]
[1757669259118,0.66,237.93,237.9,0.03]
[1757669259546,0.66,237.92,237.9,0.03]
[1757669261637,0.66,237.94,237.9,0.03]
[1757669262030,0.66,237.93,237.9,0.03]
[1757669262532,0.66,237.92,237.9,0.03]
[1757669263052,0.66,237.92,237.9,4.23344682]
[1757669267928,0.66,237.94,237.9,14.74206388]
[1757669268151,131.16,237.98,237.9,14.74206388]
[1757669268340,131.16,237.98,237.93,26.0]
[1757669268528,131.16,237.98,237.94,26.0]
[1757669268727,0.06,237.98,237.95,14.70897246]
[1757669270433,0.72,237.98,237.95,14.70897246]
[1757669270935,0.66,237.97,237.94,27.68091946]
[1757669271140,0.06,237.98,237.94,26.0]
[1757669271447,0.66,237.97,237.94,26.0]
[1757669272030,0.66,237.96,237.93,1.68091947]
[1757669272230,0.66,237.95,237.93,5.88382282]
[1757669272446,3.52012679,237.98,237.93,5.88382282]
[1757669272447,0.66,237.97,237.93,5.88382282]
[1757669272731,0.66,237.97,237.93,4.20290335]
[1757669273755,0.66,237.96,237.93,4.20290335]
[1757669274058,0.66,237.96,237.92,10.5075609]
[1757669274059,0.66,237.96,237.92,14.71065437]
[1757669274438,0.66,237.95,237.92,14.71065437]
[1757669275858,0.72,237.97,237.92,10.5075609]
[1757669276060,0.72,237.96,237.92,10.5075609]
[1757669279139,0.72,237.95,237.92,10.5075609]
[1757669279742,0.72,237.97,237.92,10.5075609]
[1757669279948,0.72,237.96,237.92,10.5075609]
[1757669281263,0.72,237.95,237.91,4.20327014]
[1757669281650,0.72,237.94,237.91,4.20327014]
[1757669281859,3.52012679,237.98,237.91,4.20327014]
[1757669282154,0.72,237.93,237.91,4.20327014]
[1757669282360,0.72,237.92,237.91,4.20327014]
[1757669282937,0.72,237.97,237.91,14.7114455]
[1757669284950,0.72,237.97,237.91,18.97297944]
[1757669285350,0.72,237.97,237.91,8.46480408]
[1757669285551,0.72,237.97,237.93,26.0]
[1757669285864,0.72,237.96,237.93,26.0]
[1757669286168,0.72,237.95,237.93,26.0]
[1757669286476,0.72,237.94,237.93,26.0]
[1757669286950,0.72,237.94,237.92,4.2029794]
[1757669287270,0.72,237.93,237.92,4.2029794]
[1757669287445,0.72,237.93,237.9,0.03]
[1757669287446,0.72,237.93,237.91,4.20325105]
[1757669288869,0.72,237.93,237.9,0.03]
[1757669289653,0.72,237.92,237.9,0.03]
[1757669290971,0.72,237.92,237.91,0.03]
[1757669292275,0.72,237.94,237.91,0.03]
[1757669292655,0.72,237.93,237.91,0.03]
[1757669293159,4.20222244,237.97,237.91,0.03]
[1757669293160,0.72,237.92,237.91,0.03]
[1757669295855,4.92309347,237.92,237.91,0.03]
[1757669296247,8.38322026,237.92,237.91,0.03]
[1757669296752,4.92309347,237.92,237.91,0.03]
[1757669297974,0.72,237.92,237.91,0.03]
[1757669303659,4.18012679,237.92,237.91,0.03]
[1757669304362,8.38322026,237.92,237.91,0.03]
[1757669305482,4.92309347,237.92,237.91,0.03]
[1757669305673,8.38322026,237.92,237.91,0.03]
[1757669311591,4.92309347,237.92,237.91,0.03]
[1757669311783,8.38322026,237.92,237.91,0.03]
[1757669312586,0.72,237.92,237.91,0.03]
[1757669314860,131.1,237.97,237.91,0.03]
[1757669315187,0.69,237.96,237.91,0.03]
[1757669315895,4.15012679,237.96,237.91,0.03]
[1757669316064,0.69,237.96,237.91,0.03]
[1757669316270,8.35259146,237.96,237.91,0.03]
[1757669316484,131.1,237.97,237.91,0.03]
[1757669316485,143.76467776,237.97,237.91,0.03]
[1757669316685,0.69,237.95,237.91,0.03]
[1757669317273,0.69,237.94,237.91,0.03]
[1757669317675,147.96691179,237.97,237.91,0.03]
[1757669317676,131.79,237.97,237.91,0.03]
[1757669321488,0.69,237.97,237.91,0.03]
[1757669327605,0.06,237.98,237.92,4.20309347]
[1757669327787,0.06,237.98,237.92,30.20309347]
[1757669329202,0.69,237.97,237.91,0.03]
[1757669329783,4.89234451,237.97,237.91,0.03]
[1757669330192,0.69,237.97,237.91,0.03]
[1757669332709,4.89223405,237.97,237.91,0.03]
[1757669336696,7.1065309,237.97,237.91,0.03]
[1757669337093,4.89223405,237.97,237.91,0.03]
[1757669339814,17.6120568,237.97,237.91,0.03]
[1757669340514,2.21429685,237.94,237.91,0.03]
[1757669340813,2.21429685,237.94,237.9,0.03]
[1757669340814,2.21429685,237.93,237.9,0.03]
[1757669341018,2.87429685,237.93,237.9,0.03]
[1757669341406,0.66,237.93,237.9,0.03]
[1757669341806,4.86308467,237.93,237.91,0.03]
[1757669342410,0.66,237.93,237.91,0.03]
[1757669342902,0.66,237.92,237.91,0.03]
[1757669345322,0.06,237.98,237.91,0.03]
[1757669345323,0.66,237.95,237.91,0.03]
[1757669345499,0.66,237.94,237.91,0.03]
[1757669345701,0.66,237.93,237.91,0.03]
[1757669346018,0.06,237.98,237.93,13.59559401]
[1757669346322,0.06,237.98,237.96,26.0]
[1757669346817,0.06,237.98,237.97,30.20221036]
[1757669348621,0.72,237.98,237.97,30.20221036]
[1757669349625,0.06,237.98,237.97,30.20221036]
[1757669350826,0.72,237.98,237.97,30.20221036]
[1757669351625,0.06,237.98,237.97,30.20221036]
[1757669352810,0.72,237.98,237.97,30.20221036]
[1757669354104,0.72,237.98,237.95,30.20243057]
[1757669354330,0.66,237.97,237.95,30.20243057]
[1757669358327,0.06,237.98,237.95,30.20243057]
[1757669358518,0.06,237.97,237.95,30.20243057]
[1757669360329,0.72,237.97,237.95,30.20243057]
[1757669361030,0.72,237.97,237.9,13.59559401]
[1757669361227,0.06,237.97,237.9,13.59559401]
[1757669361434,0.06,237.97,237.92,1.6809901]
[1757669362729,0.72,237.97,237.92,1.6809901]
[1757669363139,0.72,237.97,237.95,26.0]
[1757669366036,0.72,237.97,237.96,4.20238695]
[1757669366338,0.06,237.97,237.96,4.20238695]
[1757669366541,0.73,237.97,237.95,26.0]
[1757669366743,0.67,237.96,237.95,26.0]
[1757669368044,0.73,237.97,237.95,26.0]
[1757669368338,0.67,237.96,237.95,30.20245936]
[1757669369121,0.67,237.96,237.91,1.6809901]
[1757669369322,0.67,237.95,237.92,26.0]
[1757669369521,0.67,237.94,237.92,26.0]
[1757669369742,0.67,237.93,237.92,26.0]
[1757669372646,0.67,237.93,237.9,26.0]
[1757669372946,0.67,237.92,237.9,26.0]
[1757669373241,0.67,237.91,237.9,26.0]
[1757669373825,0.67,237.91,237.88,0.03]
[1757669374238,0.67,237.91,237.89,26.0]
[1757669374440,0.67,237.9,237.89,26.0]
[1757669374640,0.67,237.9,237.88,0.03]
[1757669374839,0.67,237.89,237.88,26.03]
[1757669377355,0.67,237.89,237.88,30.23380023]
[1757669378642,0.06,237.93,237.89,30.20362112]
[1757669378844,0.67,237.91,237.89,30.20362112]
[1757669379045,0.67,237.9,237.89,30.20362112]
[1757669379732,0.67,237.9,237.89,26.0]
[1757669380952,0.67,237.9,237.89,30.20362352]
[1757669381156,0.67,237.92,237.89,30.20362352]
[1757669381529,0.67,237.91,237.89,30.20362352]
[1757669382147,0.06,237.93,237.89,30.20362352]
[1757669382346,0.67,237.92,237.89,4.20362352]
[1757669382542,0.06,237.93,237.89,4.20362352]
[1757669383041,0.73,237.93,237.89,4.20362352]
[1757669383245,0.67,237.92,237.89,4.20362352]
[1757669384033,0.06,237.93,237.89,4.20362352]
[1757669384259,0.67,237.92,237.89,4.20362352]
[1757669385055,0.67,237.92,237.91,26.0]
[1757669385435,0.67,237.92,237.88,14.74313971]
[1757669385648,0.67,237.91,237.9,26.0]
[1757669386353,0.67,237.91,237.88,30.23380023]
[1757669388757,0.06,237.93,237.88,30.23380023]
[1757669389061,0.67,237.92,237.88,30.23380023]
[1757669390151,0.67,237.91,237.88,30.23380023]
[1757669393156,0.73,237.93,237.88,30.23380023]
[1757669393364,0.67,237.92,237.88,30.23380023]
[1757669393570,0.67,237.91,237.88,30.23380023]
[1757669394171,0.06,237.93,237.88,30.23380023]
[1757669394345,0.67,237.92,237.88,30.23380023]
[1757669394545,0.06,237.93,237.88,30.23380023]
[1757669394761,0.67,237.92,237.88,30.23380023]
[1757669395268,0.72,237.91,237.88,30.23380023]
[1757669395965,0.72,237.91,237.9,26.0]
[1757669397974,0.72,237.91,237.88,26.03]
[1757669398267,0.06,237.92,237.88,26.03]
[1757669398572,0.78,237.92,237.88,26.03]
[1757669399074,0.06,237.92,237.88,26.03]
[1757669399370,0.06,237.92,237.9,26.0]
[1757669400350,0.06,237.92,237.88,14.74330081]
[1757669402073,0.78,237.92,237.88,14.74330081]
[1757669402277,0.06,237.92,237.88,14.74330081]
[1757669402857,0.06,237.92,237.91,26.0]
[1757669406069,0.06,237.92,237.91,30.20327014]
[1757669407968,0.06,237.92,237.91,31.88440154]
[1757669410460,0.06,237.92,237.91,45.47999555]
[1757669412772,0.06,237.92,237.91,45.90032256]
[1757669412969,0.06,237.93,237.91,45.90032256]
[1757669413679,0.06,237.92,237.91,45.90032256]
[1757669413881,0.06,237.93,237.92,13.59559401]
[1757669414087,0.06,237.93,237.92,17.79868748]
[1757669414266,1e-08,237.96,237.95,39.59559401]
[1757669414466,0.06,237.98,237.96,13.59559401]
[1757669415083,0.06,237.98,237.97,13.59559401]
[1757669415696,0.06,237.98,237.97,43.79780437]
[1757669416000,0.06,237.98,237.97,45.47830012]
[1757669416290,0.06,237.98,237.97,31.88270611]
[1757669416691,0.06,238.01,237.98,13.59559401]
[1757669417397,0.06,238.01,237.99,15.27594856]
[1757669418874,0.06,238.01,237.99,19.47780578]
[1757669419900,0.06,238.01,237.99,5.88221177]
[1757669421973,0.06,238.01,238.0,39.59559401]
[1757669422188,0.06,238.01,238.0,41.27573682]
[1757669422697,0.06,238.01,238.0,45.47741749]
[1757669424488,0.78,238.01,238.0,45.47741749]
[1757669424898,0.06,238.01,238.0,45.47741749]
[1757669425195,0.76,238.01,238.0,0.96014281]
[1757669425494,0.76,238.01,237.96,4.20224186]
[1757669425705,0.7,238.0,237.96,4.20224186]
[1757669425878,0.7,237.99,237.96,4.20224186]
[1757669426075,0.06,238.01,237.99,26.0]
[1757669426297,0.06,238.01,238.0,26.0]
[1757669426497,0.06,238.01,238.0,30.20168067]
[1757669426698,0.76,238.01,238.0,31.88224702]
[1757669426882,0.06,238.01,238.0,45.47784103]
[1757669430695,0.76,238.01,238.0,45.47784103]
[1757669431806,0.76,238.01,238.0,31.88224702]
[1757669432299,0.76,238.01,238.0,1.68056635]
[1757669432603,0.76,238.01,238.0,5.88224702]
[1757669432782,0.76,238.01,238.0,31.88224702]
[1757669433801,0.76,238.01,238.0,45.47784103]
[1757669434109,0.06,238.01,238.0,45.47784103]
[1757669434284,0.06,238.01,238.0,19.47784103]
[1757669436685,0.76,238.01,238.0,5.88224702]
[1757669436900,0.76,238.01,238.0,31.88224702]
[1757669438118,0.76,238.01,238.0,27.68056635]
[1757669438822,0.76,238.01,238.0,1.68056635]
[1757669439807,0.76,238.01,238.0,5.88224702]
[1757669443227,0.76,238.01,238.0,1.68056635]
[1757669444517,0.76,238.01,238.0,19.47784103]
[1757669445622,0.06,238.01,238.0,19.47784103]
[1757669446507,0.76,238.01,238.0,19.47784103]
[1757669448145,0.76,238.01,238.0,19.50784103]
[1757669450107,0.76,238.01,238.0,0.03]
[1757669451428,4.96150413,238.01,238.0,0.03]
[1757669451616,7.173972,238.01,238.0,0.03]
[1757669451811,11.37533218,238.01,238.0,0.03]
[1757669452714,9.16286431,238.01,238.0,0.03]
[1757669453311,4.96136018,238.01,238.0,0.03]
[1757669453930,0.76,238.01,238.0,0.03]
[1757669461429,0.06,238.01,238.0,0.03]
[1757669461628,0.75,238.01,238.0,0.03]
[1757669461925,4.95150413,238.01,238.0,0.03]
[1757669462332,0.75,238.01,238.0,0.03]
[1757669463119,7.163972,238.01,238.0,0.03]
[1757669464241,4.95150413,238.01,238.0,0.03]
[1757669464441,7.163972,238.01,238.0,0.03]
[1757669465030,8.84517406,238.01,238.0,0.03]
[1757669465243,7.163972,238.01,238.0,0.03]
[1757669470645,4.95150413,238.01,238.0,0.03]
[1757669470838,7.163972,238.01,238.0,0.03]
[1757669474152,0.75,238.01,238.0,0.03]
[1757669474852,0.06,238.01,238.0,0.71]
[1757669476528,0.06,238.01,238.0,4.91168067]
[1757669477555,0.06,238.01,238.0,4.23168067]
[1757669477958,0.06,238.01,238.0,0.71]
[1757669478833,0.06,238.01,238.0,0.03]
[1757669479838,0.75,238.01,238.0,0.03]
[1757669480052,7.163972,238.01,238.0,0.03]
[1757669480352,4.95150413,238.01,238.0,0.03]
[1757669481452,0.75,238.01,238.0,0.03]
[1757669481838,0.06,238.01,238.0,0.03]
[1757669485142,0.06,238.01,238.0,0.72]
[1757669486263,0.06,238.01,238.0,0.03]
[1757669486469,0.75,238.01,238.0,0.03]
[1757669487166,0.06,238.01,238.0,0.03]
[1757669489881,4.26150413,238.01,238.0,0.03]
[1757669490183,7.163972,238.01,238.0,0.03]
[1757669493982,26.51760382,238.01,237.97,0.03]
[1757669494146,2.21246787,237.98,237.97,0.03]
[1757669494574,0.69,237.98,237.97,0.03]
[1757669494849,14.76526447,238.01,237.97,0.03]
[1757669494850,2.90246787,238.0,237.97,0.03]
[1757669495568,0.69,238.0,237.97,0.03]
[1757669495772,4.89168195,238.0,237.97,0.03]
[1757669495969,0.69,238.0,237.97,0.03]
[1757669497277,4.20168353,238.0,237.97,0.03]
[1757669497479,0.69,237.99,237.97,0.03]
[1757669499566,0.69,237.98,237.97,0.03]
[1757669500570,4.89203378,237.98,237.97,0.03]
[1757669501362,4.95151556,238.01,237.97,0.03]
[1757669501578,0.69,238.0,237.97,0.03]
[1757669503596,0.69,237.99,237.97,0.03]
[1757669505376,0.69,237.98,237.97,0.03]
[1757669505770,2.90246787,237.98,237.97,0.03]
[1757669505971,0.69,237.98,237.97,0.03]
[1757669507088,4.15002934,237.98,237.97,0.03]
[1757669508176,8.35206312,237.98,237.97,0.03]
[1757669516899,4.20203378,237.98,237.97,0.03]
[1757669517104,4.2017642,238.0,237.97,0.74]
[1757669517402,4.26151587,238.01,237.98,0.71]
[1757669517592,30.26151587,238.01,237.97,0.03]
[1757669518303,30.26151587,238.01,237.97,0.74]
[1757669518883,30.26151587,238.01,237.97,0.03]
[1757669519795,30.93151587,238.01,237.97,0.03]
[1757669519979,4.93151587,238.01,237.97,0.03]
[1757669520401,0.67,238.0,237.97,0.03]
[1757669521311,3.46002934,237.98,237.97,0.03]
[1757669521882,4.13002934,237.98,237.97,0.03]
[1757669522080,30.13002934,237.98,237.97,0.03]
[1757669522502,34.33206312,237.98,237.97,0.03]
[1757669527610,4.20203378,237.98,237.97,0.03]
[1757669527802,7.66206312,237.98,237.97,0.03]
[1757669528509,8.33206312,237.98,237.97,0.03]
[1757669528814,30.20203378,237.98,237.97,0.03]
[1757669528994,33.66206312,237.98,237.97,0.03]
[1757669531001,34.33206312,237.98,237.97,0.03]
[1757669536217,33.66206312,237.98,237.97,0.03]
[1757669536516,30.20203378,237.98,237.97,0.03]
[1757669536719,33.66206312,237.98,237.97,0.03]
[1757669538018,34.33206312,237.98,237.97,0.03]
[1757669539511,44.83714758,237.98,237.95,0.03]
[1757669539707,29.46002934,237.96,237.95,0.03]
[1757669540109,34.33241629,237.96,237.95,0.03]
[1757669540515,8.33241629,237.96,237.95,0.03]
[1757669543227,26.0,237.9,237.88,0.03]
[1757669543408,3.46002934,237.89,237.85,0.03]
[1757669543729,6.92005868,237.87,237.85,0.03]
[1757669544234,4.13002934,237.87,237.85,0.03]
[1757669545123,8.3340063,237.87,237.85,0.03]
[1757669546017,21.01408781,237.87,237.85,0.03]
[1757669546210,24.47411715,237.87,237.85,0.03]
[1757669548215,24.47411715,237.87,237.86,0.03]
[1757669549034,4.20259694,237.95,237.86,0.71]
[1757669549219,3.46002934,237.89,237.86,0.71]
[1757669549911,7.66368526,237.89,237.86,0.71]
[1757669550727,3.46002934,237.89,237.86,0.71]
[1757669551032,7.6636619,237.89,237.86,0.03]
[1757669551236,4.20363256,237.89,237.86,0.03]
[1757669551418,3.46002934,237.9,237.86,0.03]
[1757669551618,4.20338312,237.91,237.87,0.68]
[1757669551933,3.46002934,237.9,237.86,0.03]
[1757669552545,7.66294539,237.94,237.87,0.68]
[1757669553334,26.0,237.93,237.87,0.68]